bitfinex/quotes_SOLUSD_20240813
["timestamp","ask_amount","ask_price","bid_price","bid_amount"]
[1723508403616,5.4731,146.17,146.13,19.1605]
[1723508403928,5.4728,146.18,146.14,5.4741]
[1723508404126,5.59709,146.21,146.16,5.4732]
[1723508404337,0.12549,146.19,146.11,41.0622]
[1723508404639,0.12549,146.17,146.08,13.6908]
[1723508404932,0.12549,146.17,146.05,22.9154]
[1723508404933,5.4753,146.11,146.05,20.2712]
[1723508405103,5.4757,146.1,146.05,19.1706]
[1723508405729,1.71156401,146.09,146.05,13.6934]
[1723508405932,15.9483,146.14,146.07,13.6915]
[1723508406103,15.9483,146.14,146.11,5.4753]
[1723508406306,15.9483,146.14,146.09,13.6895]
[1723508406503,21.4225,146.14,146.09,19.1655]
[1723508406724,45.0,146.13,146.09,19.1655]
[1723508406924,50.4747,146.13,146.08,5.4762]
[1723508407528,50.60009,146.13,146.08,5.4763]
[1723508407936,15.9483,146.14,146.02,27.392]
[1723508408112,2.6972487,146.17,146.05,0.12549]
[1723508408432,2.6972487,146.17,146.12,5.4746]
[1723508408433,70.4733,146.17,146.12,5.4746]
[1723508408633,6.93505394,146.21,146.08,15.3677]
[1723508408819,5.4716,146.21,146.16,5.4733]
[1723508409019,22.8341,146.22,146.17,5.4729]
[1723508409020,28.3053,146.22,146.17,5.4729]
[1723508409220,28.3053,146.22,146.16,5.4733]
[1723508409221,5.4715,146.21,146.16,5.4733]
[1723508409414,28.3053,146.22,146.17,5.473]
[1723508409611,22.8341,146.22,146.16,13.683]
[1723508410331,5.4722,146.2,146.15,5.4738]
[1723508410540,5.4723,146.19,146.14,5.4741]
[1723508410837,5.59749,146.2,146.15,5.4737]
[1723508411053,45.12549,146.2,146.13,13.6859]
[1723508411340,45.12549,146.2,146.14,5.4741]
[1723508411550,50.59779,146.2,146.14,5.4741]
[1723508411736,50.59779,146.2,146.15,5.4737]
[1723508412826,5.4724,146.19,146.14,5.4741]
[1723508413346,5.4724,146.19,146.1,27.378]
[1723508413347,46.83593959,146.2,146.1,13.6888]
[1723508413529,0.12549,146.17,146.1,13.6888]
[1723508413837,5.4742,146.14,146.1,19.1643]
[1723508414045,5.4741,146.15,146.1,19.1643]
[1723508415121,0.25098,146.17,146.1,13.6888]
[1723508415332,0.25098,146.18,146.1,13.6888]
[1723508415543,5.4734,146.16,146.11,5.4752]
[1723508415743,45.0,146.15,146.11,5.4752]
[1723508416050,0.37647,146.18,146.12,13.6869]
[1723508416220,2.73557498,146.19,146.16,5.4731]
[1723508416415,2.73557498,146.19,146.17,5.473]
[1723508416822,5.4719,146.2,146.16,19.1565]
[1723508417520,22.8341,146.22,146.16,13.6832]
[1723508417739,1.71016585,146.21,146.13,13.6863]
[1723508417917,21.71051246,146.2,146.1,27.3777]
[1723508418125,33.6799,146.2,146.11,5.4752]
[1723508418327,5.4738,146.15,146.11,5.4752]
[1723508418633,33.6799,146.2,146.11,5.4752]
[1723508418634,5.4735,146.16,146.11,5.4752]
[1723508418937,45.0,146.15,146.12,5.4748]
[1723508419114,45.0,146.19,146.13,13.6863]
[1723508419319,45.0,146.19,146.15,5.4738]
[1723508419744,50.4723,146.19,146.15,5.4738]
[1723508420137,50.4723,146.19,146.14,5.474]
[1723508420335,5.4737,146.16,146.1,13.6887]
[1723508420643,0.12549,146.18,146.1,13.6887]
[1723508420644,52.18479638,146.15,146.1,19.164]
[1723508420955,5.4735,146.16,146.11,5.4753]
[1723508421135,45.0,146.15,146.12,5.4748]
[1723508421330,5.4724,146.19,146.13,13.686]
[1723508421677,65.0,146.18,146.14,5.474]
[1723508422159,70.4727,146.18,146.14,5.474]
[1723508422450,0.12549,146.2,146.16,5.4734]
[1723508422949,5.59709,146.21,146.16,5.4734]
[1723508423455,5.4716,146.21,146.17,5.473]
[1723508423956,5.4719,146.2,146.16,5.4733]
[1723508424539,22.8341,146.22,146.15,13.6841]
[1723508424743,6.571,146.25,146.2,5.4716]
[1723508424925,5.4714,146.22,146.17,5.4727]
[1723508425118,5.4714,146.22,146.18,5.4726]
[1723508425319,12.0411,146.25,146.2,5.4719]
[1723508425530,6.571,146.25,146.19,13.6807]
[1723508425729,6.571,146.25,146.21,13.6786]
[1723508425929,28.47825394,146.3,146.24,13.6758]
[1723508426146,21.5432,146.3,146.24,13.6758]
[1723508426680,21.5432,146.3,146.19,16.0098]
[1723508426681,5.4705,146.24,146.19,5.4722]
[1723508426868,5.4705,146.24,146.2,5.4719]
[1723508427158,0.12549,146.23,146.15,13.6843]
[1723508427355,0.25098,146.23,146.16,5.4733]
[1723508427525,15.19479,146.22,146.16,5.4733]
[1723508427728,50.4716,146.21,146.16,5.4733]
[1723508427942,45.0,146.21,146.17,5.4729]
[1723508428256,15.0693,146.22,146.18,5.4726]
[1723508428446,15.0693,146.22,146.13,27.3724]
[1723508428447,15.0693,146.22,146.2,5.4717]
[1723508428660,5.4719,146.21,146.16,5.4733]
[1723508428943,15.0693,146.22,146.15,5.4737]
[1723508428944,45.0,146.2,146.15,5.4737]
[1723508429145,5.472,146.2,146.15,5.4737]
[1723508429330,5.472,146.2,146.11,22.4525]
[1723508429331,5.4728,146.18,146.13,19.1605]
[1723508430060,1.71049062,146.17,146.13,19.1605]
[1723508430249,46.71049062,146.17,146.09,27.3788]
[1723508430430,5.4741,146.15,146.1,13.6889]
[1723508430767,45.0,146.14,146.11,5.4752]
[1723508430976,45.0,146.14,146.1,19.1645]
[1723508431258,50.4742,146.14,146.1,13.6889]
[1723508431650,45.0,146.14,146.1,13.6889]
[1723508431968,39.28,146.18,146.05,27.3876]
[1723508431969,0.12549,146.19,146.13,5.4742]
[1723508432170,50.4727,146.18,146.13,5.4742]
[1723508432334,45.0,146.18,146.14,5.4741]
[1723508432535,5.473,146.17,146.12,19.1616]
[1723508433388,5.473,146.17,146.1,5.4756]
[1723508433389,5.4738,146.15,146.1,5.4756]
[1723508433591,5.4747,146.13,146.09,13.6899]
[1723508433884,1.71114186,146.12,146.09,13.6899]
[1723508434186,1.7111326,146.12,146.09,13.6899]
[1723508434682,0.12549,146.14,146.1,5.4756]
[1723508434985,0.12549,146.14,146.09,13.6899]
[1723508434986,5.4747,146.13,146.09,13.6899]
[1723508435166,1.71124961,146.12,146.09,13.6899]
[1723508435367,1.71124961,146.12,146.05,27.3876]
[1723508435368,5.4759,146.1,146.06,13.6924]
[1723508435583,1.71151731,146.09,146.06,13.6924]
[1723508435959,1.71151731,146.09,146.06,19.1695]
[1723508437080,45.0,146.1,146.04,5.4775]
[1723508437264,5.72708,146.09,146.05,5.4775]
[1723508437583,0.12549,146.09,146.06,5.4771]
[1723508437776,45.0,146.1,146.07,5.4767]
[1723508437976,45.0,146.11,146.09,5.476]
[1723508438192,45.0,146.12,146.09,5.476]
[1723508438563,16.4594,146.15,146.11,5.4753]
[1723508438771,16.4594,146.15,146.11,5.4749]
[1723508439076,16.1164,146.19,146.09,27.3803]
[1723508439282,16.1164,146.19,146.15,5.4738]
[1723508439677,16.1731,146.23,146.18,5.4723]
[1723508439890,5.4712,146.22,146.17,5.4729]
[1723508440384,5.4732,146.17,146.12,5.4746]
[1723508440607,5.4732,146.17,146.09,27.3803]
[1723508440608,5.4732,146.17,146.13,19.1601]
[1723508440896,13.6788,146.22,146.13,19.1601]
[1723508440897,5.4727,146.18,146.13,19.16]
[1723508441080,45.0,146.17,146.13,19.16]
[1723508441470,5.4721,146.2,146.15,5.4735]
[1723508441666,50.4725,146.19,146.14,5.4742]
[1723508441893,50.4725,146.19,146.13,13.6856]
[1723508441894,5.4733,146.17,146.13,13.6856]
[1723508442312,45.0,146.16,146.1,19.1643]
[1723508442475,5.4741,146.15,146.1,19.1643]
[1723508442683,0.12549,146.12,146.08,5.4763]
[1723508443008,0.12549,146.12,146.07,13.6917]
[1723508443009,21.05439,146.14,146.1,5.4756]
[1723508443186,15.58009,146.14,146.1,5.4756]
[1723508443496,45.0,146.13,146.09,19.1656]
[1723508443799,5.72588,146.12,146.07,5.4767]
[1723508444000,0.12549,146.1,146.01,15.101]
[1723508444224,5.4769,146.07,146.03,13.6955]
[1723508444509,5.4769,146.07,146.03,5.4783]
[1723508444714,1.7118937,146.06,146.02,5.4786]
[1723508444870,46.7118937,146.06,146.02,5.4786]
[1723508445076,5.60299,146.05,146.0,19.1774]
[1723508445272,46.71218672,146.04,146.01,5.479]
[1723508445471,0.12549,146.06,146.02,5.4786]
[1723508445702,0.12549,146.05,146.0,19.1773]
[1723508445895,0.25098,146.05,146.0,19.1773]
[1723508446804,21.4432,146.07,146.02,13.6961]
[1723508447105,15.359,146.07,146.03,5.478]
[1723508447306,20.0,146.1,146.04,15.06368262]
[1723508447497,15.9864,146.11,146.09,5.476]
[1723508447702,15.9864,146.11,146.08,13.6905]
[1723508448310,6.2188,146.15,146.1,13.6887]
[1723508448610,5.4749,146.12,146.07,19.1686]
[1723508448795,5.4753,146.11,146.07,13.6919]
[1723508449317,6.2188,146.15,146.07,13.6919]
[1723508449519,6.2188,146.15,146.09,13.6893]
[1723508450020,6.2188,146.15,146.08,5.4763]
[1723508450021,5.4748,146.13,146.08,5.4763]
[1723508450813,45.12549,146.12,146.06,19.1694]
[1723508451002,5.4754,146.11,146.06,19.1694]
[1723508451320,45.0,146.1,146.02,13.6958]
[1723508451497,5.4763,146.09,146.04,5.4779]
[1723508451748,5.4764,146.08,146.03,5.4782]
[1723508451916,5.60229,146.07,146.03,5.4782]
[1723508452215,0.12549,146.05,146.0,5.4791]
[1723508452389,70.60269,146.06,146.01,5.4787]
[1723508452586,65.12549,146.06,146.02,5.4786]
[1723508453016,20.0,146.06,146.03,5.4783]
[1723508453204,0.12549,146.06,146.01,5.4787]
[1723508453405,0.12549,146.07,146.01,5.4787]
[1723508453601,45.12549,146.07,145.97,27.4023]
[1723508453818,20.0,146.08,146.02,13.6962]
[1723508454235,15.4578,146.09,146.04,13.6943]
[1723508454731,5.4764,146.08,146.04,13.6943]
[1723508455294,15.4578,146.09,146.05,5.4774]
[1723508455710,16.4883,146.14,146.08,5.4764]
[1723508455911,16.4883,146.14,146.08,13.6903]
[1723508456418,21.9628,146.14,146.09,5.476]
[1723508456934,16.4883,146.14,146.1,13.6887]
[1723508457141,61.3023,146.18,146.13,5.4745]
[1723508457306,5.4734,146.16,146.12,19.1618]
[1723508457510,75.8294,146.18,146.09,13.6897]
[1723508457933,77.54037602,146.18,146.09,13.6897]
[1723508458333,5.4747,146.13,146.09,13.6897]
[1723508458538,0.12549,146.16,146.09,13.6897]
[1723508458949,0.12549,146.16,146.12,5.4749]
[1723508459282,25.4733,146.17,146.12,5.4749]
[1723508459410,5.4734,146.16,146.11,5.4752]
[1723508459617,5.4738,146.15,146.11,5.4752]
[1723508459818,5.4738,146.15,146.1,5.4756]
[1723508460224,0.12549,146.16,146.09,19.1657]
[1723508460523,0.12549,146.16,146.06,19.1694]
[1723508460524,5.4756,146.11,146.06,19.1694]
[1723508460719,1.71137308,146.1,146.06,19.1694]
[1723508460950,5.4756,146.11,146.06,19.1694]
[1723508461115,5.4756,146.11,146.04,5.4778]
[1723508461116,5.4761,146.09,146.04,5.4778]
[1723508461319,0.12549,146.12,146.05,13.6935]
[1723508461619,70.60009,146.13,146.08,5.4763]
[1723508461826,65.12549,146.13,146.09,5.4759]
[1723508462018,65.12549,146.13,146.08,5.4763]
[1723508462019,70.60009,146.13,146.08,5.4763]
[1723508462411,65.0,146.13,146.09,5.4759]
[1723508462611,0.12549,146.15,146.11,5.4753]
[1723508462847,5.4731,146.17,146.12,5.4749]
[1723508463055,22.0223,146.18,146.13,5.4742]
[1723508463365,5.4731,146.17,146.12,5.4748]
[1723508463730,5.4731,146.17,146.13,5.4745]
[1723508464646,5.4719,146.2,146.15,5.4737]
[1723508465023,5.4719,146.2,146.16,5.4734]
[1723508465255,15.589,146.22,146.14,13.6852]
[1723508465558,15.589,146.22,146.09,43.5822]
[1723508465559,5.4732,146.17,146.13,5.4743]
[1723508465933,5.4726,146.19,146.13,5.4743]
[1723508466135,5.4727,146.18,146.13,5.4743]
[1723508466560,5.4727,146.18,146.14,5.4741]
[1723508468060,0.12549,146.21,146.16,5.4731]
[1723508468354,65.0,146.21,146.17,5.473]
[1723508468969,15.589,146.25,146.23,5.4704]
[1723508469282,5.4692,146.28,146.16,6.107]
[1723508469283,59.28,146.27,146.16,6.107]
[1723508469428,60.99007358,146.27,146.16,6.107]
[1723508469632,59.28,146.27,146.15,13.684]
[1723508469933,33.6757,146.25,146.15,13.684]
[1723508470161,20.0,146.22,146.14,5.474]
[1723508470467,6.3185,146.2,146.15,5.4737]
[1723508470673,15.1061,146.21,146.17,5.4727]
[1723508470879,5.4726,146.19,146.1,39.28]
[1723508471047,0.12549,146.2,146.13,13.6859]
[1723508471048,5.4727,146.18,146.13,13.6859]
[1723508471244,5.4735,146.16,146.11,5.4752]
[1723508471446,45.0,146.17,146.12,5.4749]
[1723508471679,45.0,146.17,146.12,13.6865]
[1723508471984,15.1061,146.21,146.16,5.4732]
[1723508472159,65.0,146.2,146.16,5.4732]
[1723508472479,70.472,146.2,146.15,5.4737]
[1723508472660,5.4724,146.19,146.14,19.159]
[1723508472866,0.12549,146.17,146.11,13.6878]
[1723508473069,5.4742,146.14,146.1,5.4756]
[1723508473256,5.4742,146.14,146.09,5.4759]
[1723508473580,0.12549,146.15,146.1,5.4756]
[1723508473757,5.59939,146.15,146.11,5.4752]
[1723508474083,45.0,146.14,146.11,5.4752]
[1723508474586,5.4734,146.16,146.11,5.4752]
[1723508474758,45.0,146.15,146.11,5.4752]
[1723508474958,50.474,146.15,146.1,19.1644]
[1723508475174,5.474,146.15,146.1,19.1644]
[1723508475463,0.12549,146.13,146.02,6.2484]
[1723508475662,5.4758,146.1,146.02,6.2484]
[1723508475872,5.4758,146.1,146.05,5.4772]
[1723508476085,1.71140174,146.09,146.01,13.6971]
[1723508476371,1.71140174,146.09,146.02,5.4786]
[1723508476372,5.4768,146.07,146.02,5.4786]
[1723508476958,5.4768,146.07,146.01,19.1761]
[1723508476959,50.4773,146.06,146.01,19.1761]
[1723508477157,5.4776,146.05,146.01,13.6971]
[1723508477349,45.0,146.04,146.01,13.6971]
[1723508479609,5.60379,146.03,145.98,20.0076605]
[1723508479897,5.4792,146.01,145.98,0.8276605]
[1723508480054,45.12549,146.02,145.98,0.8276605]
[1723508480255,0.12549,146.02,145.98,0.8276605]
[1723508480583,0.12549,146.02,145.98,6.3078605]
[1723508480952,0.12549,146.01,145.98,0.8276605]
[1723508481172,0.25098,146.01,145.98,0.8276605]
[1723508481351,5.73048,146.0,145.98,0.8276605]
[1723508481749,50.60529,145.99,145.98,0.8276605]
[1723508481950,70.98176,145.99,145.98,0.8276605]
[1723508482403,5.481,145.96,145.88,13.7096]
[1723508482554,5.481,145.96,145.85,6.3431]
[1723508482555,65.12549,145.99,145.95,5.4813]
[1723508482750,33.6951,146.04,145.86,1.37054674]
[1723508482960,20.37647,146.03,145.86,1.37054674]
[1723508483162,0.12549,146.01,145.86,1.37054674]
[1723508483460,20.12549,146.01,145.9,39.28]
[1723508483662,45.0,146.0,145.93,13.7044]
[1723508483876,45.0,146.0,145.96,5.4808]
[1723508484077,21.9779,146.05,145.99,5.4795]
[1723508484389,5.4779,146.04,145.99,5.4794]
[1723508484567,5.4787,146.02,145.97,5.4802]
[1723508484899,20.0,146.06,145.96,5.4806]
[1723508484900,5.4792,146.01,145.96,5.4806]
[1723508485185,20.0,146.03,145.95,13.7031]
[1723508485361,5.4787,146.02,145.97,5.4805]
[1723508485756,45.0,146.01,145.97,5.4805]
[1723508486173,50.4792,146.01,145.96,5.4808]
[1723508487084,5.4807,145.97,145.92,13.7058]
[1723508487267,5.4807,145.97,145.92,19.1882]
[1723508487581,5.73128,145.98,145.93,5.4819]
[1723508487785,5.73128,145.98,145.92,13.7058]
[1723508487786,0.12549,145.98,145.94,5.4817]
[1723508487995,45.25098,145.98,145.94,5.4817]
[1723508488285,5.60489,146.0,145.95,5.4812]
[1723508488497,20.88948,146.01,145.96,5.4809]
[1723508489475,5.4787,146.02,145.98,5.48]
[1723508489779,5.4787,146.02,145.97,5.4802]
[1723508489987,15.2034,146.05,145.99,5.4797]
[1723508490190,20.0,146.04,145.99,5.4797]
[1723508490479,5.4792,146.01,145.96,19.1822]
[1723508490684,5.4787,146.02,145.97,5.4805]
[1723508490986,5.4787,146.02,145.96,13.7016]
[1723508490987,25.4782,146.04,145.99,5.4797]
[1723508491170,5.4783,146.03,145.98,5.4801]
[1723508491484,5.4789,146.02,145.96,13.7016]
[1723508491781,1.71240807,146.02,145.96,13.7016]
[1723508491971,20.0,146.04,145.95,5.481]
[1723508491972,5.4794,146.0,145.95,5.481]
[1723508492556,0.12549,145.98,145.87,16.3611]
[1723508492784,5.4814,145.95,145.9,5.4831]
[1723508493185,20.0,145.98,145.91,13.7064]
[1723508493490,51.41049,145.99,145.88,27.4191]
[1723508493491,11.89059,145.99,145.94,5.4813]
[1723508493793,11.7651,145.99,145.94,5.4813]
[1723508494009,11.7651,145.99,145.95,5.4812]
[1723508494381,11.7648,145.99,145.94,5.4816]
[1723508494684,5.4798,145.99,145.94,5.4816]
[1723508495083,20.12549,146.01,145.93,13.7045]
[1723508495283,5.4806,145.97,145.93,13.7045]
[1723508495478,20.12549,146.0,145.93,13.7045]
[1723508495802,25.60519,146.0,145.95,5.4812]
[1723508496101,5.4798,145.99,145.95,0.1286665]
[1723508496275,45.12549,145.98,145.95,0.1286665]
[1723508496470,5.4801,145.99,145.95,0.1286665]
[1723508496848,0.12549,146.0,145.95,0.1286665]
[1723508497169,5.4789,146.02,145.97,5.4805]
[1723508497512,15.2034,146.05,145.95,0.1286665]
[1723508497998,15.2034,146.05,145.97,13.7007]
[1723508498199,20.0,146.04,145.95,0.1286665]
[1723508498499,5.4799,145.99,145.95,0.1286665]
[1723508498667,33.6956,146.04,145.95,0.1286665]
[1723508498874,5.4803,145.98,145.95,0.1286665]
[1723508499168,42.5915,146.05,145.95,0.1286665]
[1723508499169,7.19345176,145.97,145.95,0.1286665]
[1723508499373,5.4806,145.97,145.95,0.1286665]
[1723508499572,0.12549,146.01,145.95,0.1286665]
[1723508499806,65.25098,146.01,145.95,0.1286665]
[1723508500178,70.60459,146.01,145.96,5.4808]
[1723508500394,5.4795,146.0,145.95,5.6098665]
[1723508500604,65.12549,146.01,145.95,5.6098665]
[1723508500605,5.4799,145.99,145.95,0.1286665]
[1723508500915,45.12549,146.01,145.97,5.4804]
[1723508501415,5.4787,146.02,145.98,5.4801]
[1723508501712,5.4791,146.01,145.97,5.4804]
[1723508501909,5.4784,146.03,145.98,5.4801]
[1723508502115,28.8977,146.05,145.95,13.8314665]
[1723508502116,0.12549,146.02,145.95,13.8314665]
[1723508502285,5.4802,145.98,145.95,0.1286665]
[1723508503414,5.4793,146.01,145.96,5.4809]
[1723508503792,5.4799,145.99,145.95,0.1286665]
[1723508503993,5.4802,145.98,145.95,0.1286665]
[1723508504729,5.4798,145.99,145.95,0.1286665]
[1723508505423,5.71628149,146.03,145.95,0.1286665]
[1723508505712,5.4787,146.02,145.96,13.7018]
[1723508505916,13.693,146.06,145.99,5.4797]
[1723508506290,5.478,146.04,145.99,5.4797]
[1723508506916,5.4787,146.02,145.98,19.18]
[1723508507221,28.65143109,146.07,145.98,19.18]
[1723508507222,26.93907736,146.07,145.98,13.6999]
[1723508507410,20.0,146.04,145.98,13.6999]
[1723508507711,20.0,146.04,146.0,5.4794]
[1723508508222,20.6812,146.05,146.0,5.4794]
[1723508508740,1.71202668,146.07,145.96,6.1469]
[1723508509017,13.6927,146.07,145.99,5.4795]
[1723508509186,20.0,146.06,145.98,13.6999]
[1723508509387,5.4779,146.04,145.99,5.4795]
[1723508509610,5.4776,146.05,146.0,5.4794]
[1723508510223,6.1073,146.08,146.02,5.4783]
[1723508510520,5.4769,146.07,146.02,5.4783]
[1723508510817,5.4769,146.07,145.96,73.0314]
[1723508510818,16.3909,146.09,145.96,45.6269]
[1723508511125,16.3909,146.09,145.97,45.25098]
[1723508511287,26.3331,146.12,145.99,39.48]
[1723508511288,6.3331,146.12,145.99,39.48]
[1723508511484,6.3331,146.12,146.0,0.12549]
[1723508511685,16.6336,146.13,146.01,16.0233]
[1723508511986,16.6336,146.13,146.02,40.97457127]
[1723508512215,26.6114,146.16,146.02,40.97457127]
[1723508512216,6.6114,146.16,146.03,6.0662]
[1723508512526,33.69459587,146.2,146.05,39.60549]
[1723508512815,33.69459587,146.2,146.06,20.12549]
[1723508512816,6.1645,146.2,146.06,20.12549]
[1723508513116,6.1645,146.2,146.06,20.25098]
[1723508513317,15.7699,146.21,146.08,39.48]
[1723508513616,15.7699,146.21,146.09,0.12549]
[1723508513818,20.0,146.2,146.09,0.25098]
[1723508514292,15.7699,146.21,146.08,0.25098]
[1723508514629,15.7699,146.21,146.08,1.61938518]
[1723508514791,47.26,146.23,146.1,21.899]
[1723508514990,47.26,146.23,146.11,1.49374346]
[1723508515191,14.05629587,146.24,146.11,0.12549]
[1723508515402,14.05629587,146.24,146.11,45.37647]
[1723508515627,21.71016316,146.23,146.11,0.25098]
[1723508515812,20.0,146.23,146.11,0.12549]
[1723508516211,14.05629587,146.24,146.11,0.12549]
[1723508516408,0.25098,146.23,146.11,0.25098]
[1723508516615,0.12549,146.22,146.11,0.25098]
[1723508516919,20.12549,146.22,146.11,0.25098]
[1723508517232,20.12549,146.22,146.11,0.12549]
[1723508517233,0.25098,146.21,146.11,0.12549]
[1723508517436,20.0,146.18,146.1,6.2366]
[1723508517642,45.50196,146.17,146.1,6.2366]
[1723508517814,67.26,146.2,146.1,6.2366]
[1723508518018,20.0,146.18,146.1,6.2366]
[1723508518316,67.21297795,146.17,146.06,6.3174]
[1723508518538,0.12549,146.15,146.06,6.3174]
[1723508518843,65.50196,146.15,146.06,6.3174]
[1723508519217,0.12549,146.13,146.02,6.3174]
[1723508519733,20.25098,146.15,146.03,20.0]
[1723508519915,20.12549,146.17,146.03,20.0]
[1723508520113,45.37647,146.16,146.03,20.0]
[1723508520341,20.12549,146.15,146.03,20.0]
[1723508520541,20.0,146.15,146.03,67.26]
[1723508520706,6.4652,146.18,146.04,0.25098]
[1723508520707,20.0,146.17,146.04,0.25098]
[1723508521035,1.7107751,146.16,146.05,0.12549]
[1723508521219,40.0,146.17,146.05,20.12549]
[1723508521425,40.0,146.17,146.06,0.12549]
[1723508521621,41.71104709,146.17,146.02,6.3174]
[1723508521821,20.0,146.17,146.03,45.25098]
[1723508522030,20.0,146.17,146.05,0.12549]
[1723508522216,20.0,146.18,146.05,0.37647]
[1723508522553,20.0,146.18,146.06,0.12549]
[1723508522750,40.0,146.18,146.06,0.12549]
[1723508522914,1.71101962,146.17,146.02,6.3174]
[1723508523248,0.12549,146.13,146.02,6.3174]
[1723508523542,65.37647,146.13,146.02,6.3174]
[1723508523844,0.12549,146.12,146.02,6.3174]
[1723508524236,21.8977,146.19,146.02,6.3174]
[1723508524635,20.0,146.18,146.03,65.50196]
[1723508525532,0.12549,146.17,146.03,65.50196]
[1723508525842,0.50196,146.17,146.03,112.76196]
[1723508526046,20.50196,146.17,146.03,112.76196]
[1723508526246,45.0,146.16,146.03,112.76196]
[1723508526619,20.0,146.17,146.07,6.50509]
[1723508526811,20.0,146.2,146.08,0.25098]
[1723508527016,20.0,146.18,146.07,6.3796]
[1723508527241,1.71097442,146.17,146.07,6.3796]
[1723508527742,20.0,146.18,146.07,6.3796]
[1723508527922,45.50196,146.17,146.07,6.3796]
[1723508528122,0.50196,146.17,146.07,6.3796]
[1723508528418,20.25098,146.17,146.07,6.3796]
[1723508528631,20.0,146.17,146.08,45.37647]
[1723508528831,0.12549,146.16,146.07,6.3796]
[1723508529038,1.96200537,146.16,146.07,6.3796]
[1723508529222,21.96200537,146.16,146.07,6.3796]
[1723508529428,26.13739,146.14,146.04,16.4093]
[1723508529736,20.12549,146.12,146.03,6.353]
[1723508529914,0.12549,146.1,146.03,6.353]
[1723508530113,1.96264387,146.1,146.03,6.353]
[1723508530313,21.96264387,146.1,146.0,16.4805]
[1723508530514,0.12549,146.08,146.0,16.4805]
[1723508530746,1.96286216,146.08,146.0,16.4805]
[1723508531211,1.96286216,146.08,145.99,6.4599]
[1723508531212,0.12549,146.06,145.99,6.4599]
[1723508531417,1.96314675,146.06,145.99,6.4599]
[1723508531746,1.96314675,146.06,145.96,16.4546665]
[1723508532311,40.0,146.08,145.96,16.4546665]
[1723508532312,20.0,146.08,145.96,16.4546665]
[1723508532553,0.12549,146.09,145.97,47.26]
[1723508532721,20.0,146.11,145.98,20.0]
[1723508532922,0.12549,146.1,145.98,20.0]
[1723508533227,20.0,146.13,145.98,21.3691744]
[1723508533442,20.0,146.13,146.01,6.5342]
[1723508533630,20.0,146.13,146.02,0.25098]
[1723508534149,20.0,146.11,146.01,6.5342]
[1723508534355,1.71184431,146.1,146.01,6.5342]
[1723508534540,1.71184431,146.1,145.98,20.0]
[1723508534541,20.50196,146.09,145.97,6.3942]
[1723508534738,65.0,146.08,145.97,6.3942]
[1723508535250,0.25098,146.07,145.97,6.3942]
[1723508535434,0.12549,146.05,145.97,6.3942]
[1723508535642,0.25098,146.05,145.97,6.3942]
[1723508535830,1.96321923,146.05,145.97,6.3942]
[1723508536352,65.0,146.06,145.97,6.3942]
[1723508536526,0.12549,146.07,145.97,6.3942]
[1723508537542,0.12549,146.07,145.98,0.12549]
[1723508538042,20.0,146.13,145.99,0.12549]
[1723508538246,20.0,146.12,145.99,0.12549]
[1723508538429,20.0,146.11,145.98,47.51098]
[1723508539247,20.0,146.12,145.99,45.0]
[1723508539556,45.12549,146.11,146.0,0.25098]
[1723508539736,20.0,146.1,146.0,0.25098]
[1723508540049,45.12549,146.09,146.0,0.25098]